bitfinex-derivatives/quotes_BNBF0:USTF0_20250715
["timestamp","ask_amount","ask_price","bid_price","bid_amount"]
[1752581606849,1.1078861,680.74,680.02,0.25575354]
[1752581607048,0.98729056,680.79,680.02,0.25575354]
[1752581607049,1.1078861,680.73,680.02,0.25575354]
[1752581607248,1.1078861,680.72,680.02,0.25575354]
[1752581607449,1.1078861,680.71,680.02,0.25575354]
[1752581607646,1.1078861,680.7,680.02,0.25575354]
[1752581607847,1.1078861,680.69,680.02,0.25575354]
[1752581608051,1.1078861,680.68,680.02,0.25575354]
[1752581608246,1.1078861,680.67,680.02,0.25575354]
[1752581608448,1.1078861,680.66,680.02,0.25575354]
[1752581608648,1.1078861,680.65,680.02,0.25575354]
[1752581608852,1.1078861,680.64,680.02,0.25575354]
[1752581609052,1.1078861,680.63,680.02,0.25575354]
[1752581609253,1.1078861,680.62,680.02,0.25575354]
[1752581609449,0.98729056,680.73,680.02,0.25575354]
[1752581609851,0.98729056,680.74,680.02,0.25575354]
[1752581610352,1.1071229,680.73,680.02,0.25575354]
[1752581610549,1.1071229,680.72,680.02,0.25575354]
[1752581610848,1.1071229,680.71,680.02,0.25575354]
[1752581611049,1.1071229,680.7,680.02,0.25575354]
[1752581611254,1.1071229,680.69,680.02,0.25575354]
[1752581611448,1.1071229,680.68,680.02,0.25575354]
[1752581611752,1.1071229,680.68,679.79,0.97866013]
[1752581611753,1.1071229,680.67,679.79,0.97866013]
[1752581611948,1.1071229,680.66,679.78,0.97866013]
[1752581612151,1.1071229,680.65,679.92,0.25579395]
[1752581612356,1.1071229,680.64,679.92,0.25579395]
[1752581612551,1.1071229,680.63,679.92,0.25579395]
[1752581612753,1.1071229,680.62,679.92,0.25579395]
[1752581612949,1.1071229,680.61,679.92,0.25579395]
[1752581613153,1.1071229,680.6,679.92,0.25579395]
[1752581613350,1.1071229,680.59,679.92,0.25579395]
[1752581613550,1.1071229,680.58,679.92,0.25579395]
[1752581613750,1.1071229,680.57,679.92,0.25579395]
[1752581613956,0.98729056,680.84,679.92,0.25579395]
[1752581614255,1.1062972,680.83,679.92,0.25579395]
[1752581614455,0.98729056,680.85,679.92,0.25579395]
[1752581614456,1.1062972,680.82,679.92,0.25579395]
[1752581614754,1.1062972,680.81,679.92,0.25579395]
[1752581614955,1.1062972,680.8,679.92,0.25579395]
[1752581615256,1.1062972,680.79,679.92,0.25579395]
[1752581615455,1.1062972,680.78,679.92,0.25579395]
[1752581615754,1.1062972,680.77,679.92,0.25579395]
[1752581615952,1.1062972,680.76,679.92,0.25579395]
[1752581616153,2.09358776,680.75,679.92,0.25579395]
[1752581616353,1.10575251,680.74,679.92,0.25579395]
[1752581616652,1.10575251,680.73,679.92,0.25579395]
[1752581616852,1.10575251,680.72,679.92,0.25579395]
[1752581617056,1.10575251,680.71,679.92,0.25579395]
[1752581617254,1.10575251,680.7,679.92,0.25579395]
[1752581617555,0.25562767,681.06,679.92,0.25579395]
[1752581617556,1.10575251,680.69,679.92,0.25579395]
[1752581617757,1.10575251,680.68,679.92,0.25579395]
[1752581618057,1.10575251,680.67,679.92,0.25579395]
[1752581618259,1.10575251,680.66,679.92,0.25579395]
[1752581618557,1.10575251,680.65,679.83,0.25582592]
[1752581618752,1.10575251,680.64,679.83,0.25582592]
[1752581618954,1.10575251,680.63,679.83,0.25582592]
[1752581619158,1.10575251,680.62,679.65,0.97866013]
[1752581619357,1.10575251,680.61,679.69,0.97866013]
[1752581619558,1.10575251,680.6,679.69,1.2345152]
[1752581619858,1.10575251,680.59,679.69,0.25585507]
[1752581620058,1.10575251,680.58,679.69,0.25585507]
[1752581620255,1.10690383,680.57,679.69,0.25585507]
[1752581620458,1.10690383,680.56,679.69,0.25585507]
[1752581620657,1.10690383,680.55,679.69,0.25585507]
[1752581620857,1.10690383,680.54,679.69,0.25585507]
[1752581621059,1.10690383,680.53,679.69,0.25585507]
[1752581621257,1.10690383,680.52,679.69,0.25585507]
[1752581621457,1.10690383,680.51,679.69,0.25585507]
[1752581621659,1.10690383,680.5,679.69,0.25585507]
[1752581621862,1.10690383,680.49,679.69,0.25585507]
[1752581622058,0.98729056,680.44,679.69,0.25585507]
[1752581622357,1.10690383,680.43,679.69,0.25585507]
[1752581622558,1.10690383,680.42,679.69,0.25585507]
[1752581622760,1.10690383,680.41,679.69,0.25585507]
[1752581623063,1.10690383,680.4,679.69,0.25585507]
[1752581623260,1.10690383,680.39,679.69,0.25585507]
[1752581623563,1.10690383,680.38,679.69,0.25585507]
[1752581623759,1.10690383,680.37,679.69,0.25585507]
[1752581624059,1.10690383,680.36,679.69,0.25585507]
[1752581624260,1.10690383,680.35,679.69,0.25585507]
[1752581624459,1.10690383,680.34,679.69,0.25585507]
[1752581624664,1.10690383,680.33,679.69,0.25585507]
[1752581624865,1.10690383,680.32,679.69,0.25585507]
[1752581625164,1.10690383,680.31,679.69,0.25585507]
[1752581625365,1.10690383,680.3,679.69,0.25585507]
[1752581625664,1.10690383,680.29,679.69,0.25585507]
[1752581625862,1.10690383,680.28,679.69,0.25585507]
[1752581626064,1.10690383,680.27,679.69,0.25585507]
[1752581626261,0.98729056,680.5,679.69,0.25585507]
[1752581626564,1.1044329,680.49,679.69,0.25585507]
[1752581626759,1.1044329,680.48,679.69,0.25585507]
[1752581626965,1.1044329,680.47,679.69,0.25585507]
[1752581627164,1.1044329,680.46,679.69,0.25585507]
[1752581627362,1.1044329,680.45,679.69,0.25585507]
[1752581627565,1.1044329,680.44,679.69,0.25585507]
[1752581627865,0.98729056,680.7,679.69,0.25585507]
[1752581628065,0.98729056,680.68,679.69,0.25585507]
[1752581628269,1.1039632,680.67,679.71,0.97866013]
[1752581628464,1.1039632,680.66,679.72,0.97866013]
[1752581628659,1.1039632,680.65,679.72,0.97866013]
[1752581628861,1.1039632,680.64,679.72,0.97866013]
[1752581629062,1.1039632,680.63,679.71,0.97866013]
[1752581629367,0.25562767,681.06,679.74,0.97866013]
[1752581629368,1.1039632,680.62,679.74,0.97866013]
[1752581629565,1.1039632,680.61,679.74,0.97866013]
[1752581629761,1.1039632,680.6,679.74,0.97866013]
[1752581629966,1.1039632,680.59,679.74,0.97866013]
[1752581630262,1.1039632,680.58,679.74,0.97866013]
[1752581630466,1.1039632,680.57,679.75,0.97866013]
[1752581630662,1.1039632,680.56,679.75,0.97866013]
[1752581630860,1.1039632,680.55,679.75,0.97866013]
[1752581631064,1.1039632,680.54,679.75,0.97866013]
[1752581631362,1.1039632,680.53,679.76,0.97866013]
[1752581631564,1.1039632,680.52,679.76,0.97866013]
[1752581631761,1.1039632,680.51,679.76,0.97866013]
[1752581631964,1.1039632,680.5,679.74,0.97866013]
[1752581632165,1.1039632,680.49,679.74,0.97866013]
[1752581632366,0.98729056,680.72,679.74,0.97866013]
[1752581632564,2.09210226,680.71,679.75,0.97866013]
[1752581632762,1.1048117,680.7,679.75,0.97866013]
[1752581633065,1.1048117,680.69,679.75,0.97866013]
[1752581633265,1.1048117,680.68,679.75,0.97866013]
[1752581633465,1.1048117,680.67,679.76,0.97866013]
[1752581633665,1.1048117,680.66,679.76,0.97866013]
[1752581633862,1.1048117,680.65,679.76,0.97866013]
[1752581634061,1.1048117,680.64,679.76,0.97866013]
[1752581634260,1.1048117,680.63,679.76,0.97866013]
[1752581634466,1.1048117,680.62,679.77,0.97866013]
[1752581634665,1.1048117,680.61,679.77,0.97866013]
[1752581634864,1.1048117,680.6,679.77,0.97866013]
[1752581635062,1.1048117,680.59,679.77,0.97866013]
[1752581635273,1.1048117,680.58,679.77,0.97866013]
[1752581635568,1.1048117,680.57,679.78,0.97866013]
[1752581635863,1.1048117,680.56,679.78,0.97866013]
[1752581636068,1.1048117,680.55,679.78,0.97866013]
[1752581636269,1.1048117,680.54,679.78,0.97866013]
[1752581636469,1.1048117,680.53,679.79,0.97866013]
[1752581636670,1.1048117,680.52,679.79,0.97866013]
[1752581636969,1.1048117,680.51,679.79,0.97866013]
[1752581637169,1.1048117,680.5,679.79,0.97866013]
[1752581637371,1.1048117,680.49,679.79,0.97866013]
[1752581637670,0.98729056,680.68,679.8,0.97866013]
[1752581637867,1.1060051,680.67,679.8,0.97866013]
[1752581638067,1.1060051,680.66,679.8,0.97866013]
[1752581638270,0.98729056,680.68,679.81,0.97866013]
[1752581638469,2.09350736,680.67,679.82,0.97866013]
[1752581638669,1.1062168,680.66,679.82,0.97866013]
[1752581638868,1.1062168,680.65,679.82,0.97866013]
[1752581639068,1.1062168,680.64,679.82,0.97866013]
[1752581639266,1.1062168,680.63,679.82,0.97866013]
[1752581639469,1.1062168,680.62,679.82,0.97866013]
[1752581639668,1.1062168,680.61,679.82,0.97866013]
[1752581639869,1.1062168,680.6,679.82,0.97866013]
[1752581640073,1.1062168,680.59,679.82,0.97866013]
[1752581640270,1.1062168,680.58,679.82,0.97866013]
[1752581640473,1.1062168,680.57,679.82,0.97866013]
[1752581640674,1.1062168,680.56,679.82,0.97866013]
[1752581640874,1.1062168,680.55,679.83,0.97866013]
[1752581641074,1.10648253,680.54,679.83,0.97866013]
[1752581641271,1.10648253,680.53,679.83,0.97866013]
[1752581641572,1.10648253,680.52,679.85,0.97866013]
[1752581641875,0.98729056,680.63,679.85,0.97866013]
[1752581641876,1.10648253,680.51,679.85,0.97866013]
[1752581642075,1.10648253,680.5,679.85,0.97866013]
[1752581642274,1.10648253,680.49,679.86,0.97866013]
[1752581642470,1.10648253,680.48,679.86,0.97866013]
[1752581642671,1.10648253,680.47,679.86,0.97866013]
[1752581642874,0.98729056,680.63,679.86,0.97866013]
[1752581643073,1.1068342,680.62,679.86,0.97866013]
[1752581643273,1.1068342,680.61,679.87,0.97866013]
[1752581643472,1.1068342,680.6,679.87,0.97866013]
[1752581643673,1.1068342,680.59,679.87,0.97866013]
[1752581643876,1.1068342,680.58,679.86,0.97866013]
[1752581644172,1.1068342,680.57,679.86,0.97866013]
[1752581644381,1.1068342,680.56,679.87,0.97866013]
[1752581644578,1.1068342,680.55,679.87,0.97866013]
[1752581644774,1.1068342,680.54,679.87,0.97866013]
[1752581644978,1.1068342,680.53,679.87,0.97866013]
[1752581645278,1.1068342,680.52,679.88,0.97866013]
[1752581645478,1.1068342,680.51,679.88,0.97866013]
[1752581645674,1.1068342,680.5,679.88,0.97866013]
[1752581645978,1.1068342,680.49,679.88,0.97866013]
[1752581646278,1.1068342,680.48,679.88,0.97866013]
[1752581646475,0.98729056,680.62,679.88,0.97866013]
[1752581646676,1.1074776,680.61,679.88,0.97866013]
[1752581646878,1.1074776,680.6,679.88,0.97866013]
[1752581647173,1.1074776,680.59,679.88,0.97866013]
[1752581647376,1.1074776,680.58,679.88,0.97866013]
[1752581647575,1.1074776,680.57,679.88,0.97866013]
[1752581647773,1.1074776,680.56,679.88,0.97866013]
[1752581647979,1.1074776,680.55,679.88,0.97866013]
[1752581648180,1.1074776,680.54,679.87,0.97866013]
[1752581648378,1.1074776,680.53,679.88,0.97866013]
[1752581648577,1.1074776,680.52,679.87,0.97866013]
[1752581648774,1.1074776,680.51,679.87,0.97866013]
[1752581648980,0.98729056,680.68,679.84,0.97866013]
[1752581649176,1.1075868,680.67,679.84,0.97866013]
[1752581649381,1.1076659,680.66,679.84,0.97866013]
[1752581649576,1.1076659,680.65,679.84,0.97866013]
[1752581649778,1.1076659,680.64,679.84,0.97866013]
[1752581650080,1.1076659,680.63,679.84,0.97866013]
[1752581650277,1.1076659,680.62,679.84,0.97866013]
[1752581650480,1.1076659,680.61,679.84,0.97866013]
[1752581650781,1.1076659,680.6,679.84,0.97866013]
[1752581651076,1.1076659,680.59,679.84,0.97866013]
[1752581651278,1.1076659,680.58,679.84,0.97866013]
[1752581651575,1.1076659,680.57,679.84,0.97866013]
[1752581651777,1.1076659,680.56,679.84,0.97866013]
[1752581651977,1.1076659,680.55,679.84,0.97866013]
[1752581652177,1.1076659,680.54,679.84,0.97866013]
[1752581652381,1.1076659,680.53,679.85,0.97866013]
[1752581652580,1.1076659,680.52,679.85,0.97866013]
[1752581652779,0.98729056,680.69,679.85,0.97866013]
[1752581653277,0.98729056,680.68,679.85,0.97866013]
[1752581653884,0.98729056,680.69,679.85,0.97866013]
[1752581654283,0.98729056,680.68,679.85,0.97866013]
[1752581654782,0.98729056,680.69,679.85,0.97866013]
[1752581655482,0.98729056,680.68,679.86,0.97866013]
[1752581657284,0.98729056,680.68,679.87,0.97866013]
[1752581658088,0.98729056,680.67,679.87,0.97866013]
[1752581658487,0.98729056,680.67,679.88,0.97866013]
[1752581658784,0.98729056,680.63,679.9,0.97866013]
[1752581659389,2.09548776,680.63,679.91,0.97866013]
[1752581659688,1.1081972,680.62,679.91,0.97866013]
[1752581659886,1.1081972,680.61,679.91,0.97866013]
[1752581660090,1.1081972,680.6,679.91,0.97866013]
[1752581660288,1.1081972,680.59,679.91,0.97866013]
[1752581660492,1.1081972,680.58,679.91,0.97866013]
[1752581660791,1.1081972,680.57,679.91,0.97866013]
[1752581661092,1.1081972,680.56,679.92,0.97866013]
[1752581661288,1.1081972,680.55,679.92,0.97866013]
[1752581661491,1.1081972,680.54,679.93,0.97866013]
[1752581661789,1.1081972,680.53,679.93,0.97866013]
[1752581661988,1.1081972,680.52,679.93,0.97866013]
[1752581662188,1.1081972,680.51,679.93,0.97866013]
[1752581662387,1.1081972,680.5,679.94,0.97866013]
[1752581662589,1.1081972,680.49,679.94,0.97866013]
[1752581662791,0.98729056,680.59,679.94,0.97866013]
[1752581663193,0.98729056,680.59,679.93,0.97866013]
[1752581663491,0.98729056,680.59,679.94,0.97866013]
[1752581663888,0.98729056,680.58,679.94,0.97866013]
[1752581664287,0.98729056,680.58,679.95,0.97866013]
[1752581664492,0.98729056,680.57,679.95,0.97866013]
[1752581664889,0.98729056,680.57,679.83,1.3047819]
[1752581664890,0.98729056,680.59,679.94,0.97866013]
[1752581665495,0.98729056,680.58,679.95,0.97866013]
[1752581665895,0.98729056,680.58,679.94,0.97866013]
[1752581666191,0.98729056,680.57,679.96,0.97866013]
[1752581666397,0.98729056,680.56,679.96,0.97866013]
[1752581667895,0.98729056,680.59,679.94,0.97866013]
[1752581668796,0.98729056,680.59,679.81,1.3047819]
[1752581668797,0.98729056,680.58,679.95,0.97866013]
[1752581670393,0.98729056,680.59,679.94,0.97866013]
[1752581670597,0.98729056,680.59,679.95,0.97866013]
[1752581671400,0.98729056,680.6,679.93,0.97866013]
[1752581673202,2.09783116,680.6,679.93,0.97866013]
[1752581673397,1.1105406,680.59,679.92,0.97866013]
[1752581673602,1.1105406,680.58,679.92,0.97866013]
[1752581673898,1.1105406,680.57,679.9,0.97866013]
[1752581674197,1.1105406,680.56,679.83,0.97866013]
[1752581674398,1.1105406,680.55,679.83,0.97866013]
[1752581674598,1.1105406,680.54,679.83,0.97866013]
[1752581674799,1.1105406,680.53,679.83,0.97866013]
[1752581675004,1.1105406,680.52,679.83,0.97866013]
[1752581675300,1.1105406,680.51,679.83,0.97866013]
[1752581675503,1.1105406,680.5,679.83,0.97866013]
[1752581675700,1.1105406,680.49,679.83,0.97866013]
[1752581675999,1.1105406,680.48,679.83,0.97866013]
[1752581676198,1.1105406,680.47,679.83,0.97866013]
[1752581676403,1.1105406,680.46,679.83,0.97866013]
[1752581676703,1.1105406,680.45,679.81,0.97866013]
[1752581676899,0.98729056,680.59,679.82,0.97866013]
[1752581677099,0.98729056,680.6,679.8,0.97866013]
[1752581677500,1.1106337,680.59,679.8,0.97866013]
[1752581678100,0.98729056,680.57,679.77,0.97866013]
[1752581678598,0.98729056,680.54,679.75,0.97866013]
[1752581679301,0.98729056,680.56,679.74,0.97866013]
[1752581680200,0.98729056,680.57,679.74,0.97866013]
[1752581680403,0.98729056,680.54,679.76,0.97866013]
[1752581680602,2.09792426,680.53,679.75,0.97866013]
[1752581680802,1.1106337,680.52,679.75,0.97866013]
[1752581681006,1.1106337,680.51,679.75,0.97866013]
[1752581681308,1.1106337,680.5,679.73,0.97866013]
[1752581681506,0.98729056,680.45,679.69,0.25585507]
[1752581681907,0.98729056,680.44,679.69,0.25585507]
[1752581682305,0.98729056,680.44,679.69,1.2345152]
[1752581682909,0.98729056,680.39,679.72,0.97866013]
[1752581683408,0.98729056,680.39,679.73,0.97866013]
[1752581684311,0.98729056,680.46,679.8,0.97866013]
[1752581685110,2.09792426,680.46,679.8,0.97866013]
[1752581685411,1.1106337,680.45,679.8,0.97866013]
[1752581685707,1.1106337,680.44,679.8,0.97866013]
[1752581685907,1.1106337,680.43,679.8,0.97866013]
[1752581686207,1.1106337,680.42,679.81,0.97866013]
[1752581686407,1.1106337,680.41,679.81,0.97866013]
[1752581686611,1.1106337,680.4,679.81,0.97866013]
[1752581686812,1.1106337,680.39,679.81,0.97866013]
[1752581687013,1.1118442,680.38,679.81,0.97866013]
[1752581687308,1.1118442,680.37,679.81,0.97866013]
[1752581687611,1.1118442,680.36,679.81,0.97866013]
[1752581687907,1.1118442,680.35,679.83,0.97866013]
[1752581688107,1.1118442,680.34,679.83,0.97866013]
[1752581688306,1.1118442,680.33,679.83,0.97866013]
[1752581688507,0.98729056,680.43,679.83,0.97866013]
[1752581689413,0.98729056,680.43,679.82,0.97866013]
[1752581689712,0.98729056,680.44,679.82,0.97866013]
[1752581692415,0.98729056,680.47,679.85,0.97866013]
[1752581693715,0.98729056,680.5,679.88,0.97866013]
[1752581699315,0.98729056,680.52,679.87,0.97866013]
[1752581699519,0.98729056,680.5,679.88,0.97866013]
[1752581699818,2.09922324,680.5,679.88,0.97866013]
[1752581700016,1.11193268,680.49,679.88,0.97866013]
[1752581700219,1.11193268,680.48,679.88,0.97866013]
[1752581700519,1.11193268,680.47,679.88,0.97866013]
[1752581700716,1.11193268,680.46,679.88,0.97866013]
[1752581700916,1.11169162,680.45,679.88,0.9808871]
[1752581701116,1.11169419,680.44,679.88,0.9808871]
[1752581701316,1.11169419,680.43,679.88,0.9808871]
[1752581701519,1.11169419,680.42,679.88,0.9808871]
[1752581701716,1.11169419,680.41,679.88,0.9808871]
[1752581701917,1.11169419,680.4,679.88,0.9808871]
[1752581702116,0.98954258,680.52,679.9,0.9808871]
[1752581702918,2.10124238,680.51,679.9,0.9808871]
[1752581703216,1.1116998,680.5,679.9,0.9808871]
[1752581703420,1.1116998,680.49,679.9,0.9808871]
[1752581703616,1.1116998,680.48,679.9,0.9808871]
[1752581703820,1.1116998,680.47,679.9,0.9808871]
[1752581704122,1.1116998,680.46,679.9,0.9808871]
[1752581704317,1.1116998,680.45,679.9,0.9808871]
[1752581704523,1.1116998,680.44,679.9,0.9808871]
[1752581704818,1.1116998,680.43,679.9,0.9808871]
[1752581705122,1.1116998,680.42,679.89,0.9808871]
[1752581705321,1.1116998,680.41,679.89,0.9808871]
[1752581705518,0.98954258,680.54,679.89,0.9808871]
[1752581705716,1.1117249,680.53,679.89,0.9808871]
[1752581706219,1.1117249,680.52,679.89,0.9808871]
[1752581706419,1.1117249,680.51,679.89,0.9808871]
[1752581706630,1.1117249,680.5,679.89,0.9808871]
[1752581706834,1.1117249,680.49,679.9,0.9808871]
[1752581707032,1.1117249,680.48,679.9,0.9808871]
[1752581707332,1.1117249,680.47,679.9,0.9808871]
[1752581707529,1.1117249,680.46,679.9,0.9808871]
[1752581707731,1.1117249,680.45,679.9,0.9808871]
[1752581708030,1.1117249,680.44,679.9,0.9808871]
[1752581708234,1.1117249,680.43,679.9,0.9808871]
[1752581708429,1.1117249,680.42,679.9,0.9808871]
[1752581708630,1.1117249,680.41,679.9,0.9808871]
[1752581708833,1.1117249,680.4,679.9,0.9808871]
[1752581709128,0.98954258,680.53,679.9,0.9808871]
[1752581709329,1.1117988,680.52,679.9,0.9808871]
[1752581710434,1.1117988,680.51,679.9,0.9808871]
[1752581710633,1.1117988,680.5,679.9,0.9808871]
[1752581710932,1.1117988,680.49,679.9,0.9808871]
[1752581711236,1.1117988,680.48,679.9,0.9808871]
[1752581711433,1.1117988,680.47,679.9,0.9808871]
[1752581711634,1.1117988,680.46,679.94,0.9808871]
[1752581711836,1.1117988,680.45,679.98,0.9808871]
[1752581712034,1.1117988,680.44,679.98,0.9808871]
[1752581712234,0.98954258,680.59,679.98,0.9808871]
[1752581712633,0.98954258,680.58,679.98,0.9808871]
[1752581713036,0.98954258,680.58,679.79,0.25580241]
[1752581713037,0.98954258,680.65,679.94,0.9808871]
[1752581716844,0.98954258,680.64,679.94,0.9808871]
[1752581717740,1.1118801,680.64,679.93,0.9808871]
[1752581717945,1.1118801,680.63,679.93,0.9808871]
[1752581718244,1.1118801,680.62,679.93,0.9808871]
[1752581718444,1.1118801,680.61,679.93,0.9808871]
[1752581718646,1.1118801,680.6,679.93,0.9808871]
[1752581718847,1.1118801,680.59,679.93,0.9808871]
[1752581719050,1.1118801,680.58,679.93,0.9808871]
[1752581719246,1.1118801,680.57,679.93,0.9808871]
[1752581719546,0.98954258,680.66,679.93,0.9808871]
[1752581719547,1.1118801,680.56,679.93,0.9808871]
[1752581719742,1.1118801,680.55,679.93,0.9808871]
[1752581719943,1.1118801,680.54,679.91,0.9808871]
[1752581720244,1.1118801,680.53,679.9,0.9808871]
[1752581720443,1.1118801,680.52,679.9,0.9808871]
[1752581720747,1.1118801,680.51,679.9,0.9808871]
[1752581720944,1.1118801,680.5,679.9,0.9808871]
[1752581721147,0.98954258,680.65,679.9,0.9808871]
[1752581722247,1.1118867,680.66,679.89,0.9808871]
[1752581722248,0.98954258,680.66,679.89,0.9808871]
[1752581722444,2.10142928,680.66,679.89,0.9808871]
[1752581722644,1.1118867,680.65,679.89,0.9808871]
[1752581722843,1.1118867,680.64,679.89,0.9808871]
[1752581723044,0.98954258,680.62,679.92,0.9808871]
[1752581723348,1.1118867,680.62,679.94,0.9808871]
[1752581723547,1.1118867,680.61,679.94,0.9808871]
[1752581723847,1.1118867,680.6,679.94,0.9808871]
[1752581724047,1.1118867,680.59,679.94,0.9808871]
[1752581724247,1.1118867,680.58,679.94,0.9808871]
[1752581724443,1.1118867,680.57,679.94,0.9808871]
[1752581724643,1.1118867,680.56,679.94,0.9808871]
[1752581724847,1.1118867,680.55,679.94,0.9808871]
[1752581725048,1.1118867,680.54,679.94,0.9808871]
[1752581725349,1.1118867,680.53,679.94,0.9808871]
[1752581725643,1.1118867,680.52,679.94,0.9808871]
[1752581725845,1.1118867,680.51,679.94,0.9808871]
[1752581726043,0.98954258,680.65,679.94,0.9808871]
[1752581726847,0.98954258,680.63,679.95,0.9808871]
[1752581727048,2.10135048,680.63,679.95,0.9808871]
[1752581727245,1.1118079,680.62,679.95,0.9808871]
[1752581727449,1.1118079,680.61,679.95,0.9808871]
[1752581727649,1.1118079,680.6,679.95,0.9808871]
[1752581727849,1.1118079,680.59,679.95,0.9808871]
[1752581728146,1.1118079,680.58,679.95,0.9808871]
[1752581728349,1.1118079,680.57,679.95,0.9808871]
[1752581728546,1.1118079,680.56,679.95,0.9808871]
[1752581728748,1.1118079,680.55,679.95,0.9808871]
[1752581728947,1.1118079,680.54,679.95,0.9808871]
[1752581729145,1.1118079,680.53,679.95,0.9808871]
[1752581729352,1.1118079,680.52,679.95,0.9808871]
[1752581729553,1.1118079,680.51,679.95,0.9808871]
[1752581729754,1.1118079,680.5,679.95,0.9808871]
[1752581729954,0.98954258,680.63,679.95,0.9808871]
[1752581730157,2.10130233,680.62,679.96,0.9808871]
[1752581730353,1.11175975,680.61,679.96,0.9808871]
[1752581730651,0.98954258,680.59,679.97,0.9808871]
[1752581730951,2.10130233,680.59,679.97,0.9808871]
[1752581731154,1.11175975,680.58,679.97,0.9808871]
[1752581731349,1.11175975,680.57,679.97,0.9808871]
[1752581731554,1.11175975,680.56,679.97,0.9808871]
[1752581731755,0.98954258,680.59,679.97,0.9808871]
[1752581732151,0.98954258,680.58,679.98,0.9808871]
[1752581732354,0.98954258,680.59,679.98,0.9808871]
[1752581732955,0.98954258,680.57,679.99,0.9808871]
[1752581733154,2.10125004,680.57,679.99,0.9808871]
[1752581733357,1.11170746,680.56,679.99,0.9808871]
[1752581733558,1.11170746,680.55,679.99,0.9808871]
[1752581733766,1.11170746,680.54,680.0,0.9808871]
[1752581733962,0.98954258,680.55,680.0,0.9808871]
[1752581733963,1.11170746,680.53,680.0,0.9808871]
[1752581734163,1.11170746,680.52,680.0,0.9808871]
[1752581734360,1.11170746,680.51,680.0,0.9808871]
[1752581734563,1.11170746,680.5,680.0,0.9808871]
[1752581734765,1.11170746,680.49,680.0,0.9808871]
[1752581734963,1.11170746,680.48,680.0,0.9808871]
[1752581735266,1.11170746,680.47,680.0,0.9808871]
[1752581735460,0.98954258,680.55,680.0,0.9808871]
[1752581742366,2.10109878,680.54,680.01,0.9808871]
[1752581742564,1.1115562,680.53,680.01,0.9808871]
[1752581742765,1.1115562,680.52,680.01,0.9808871]
[1752581743067,1.1115562,680.51,680.01,0.9808871]
[1752581743266,1.1115562,680.5,680.02,0.9808871]
[1752581743466,1.1115562,680.49,680.02,0.9808871]
[1752581743667,0.98954258,680.53,680.02,0.9808871]
[1752581743668,1.1115562,680.48,680.02,0.9808871]
[1752581743864,1.1120562,680.47,680.02,0.9808871]
[1752581744167,0.98954258,680.63,679.95,0.9808871]
[1752581745068,2.10164998,680.64,679.95,0.9808871]
[1752581745268,1.1121074,680.63,679.95,0.9808871]
[1752581745667,1.1121074,680.63,679.79,0.25580241]
[1752581745668,1.1121074,680.62,679.94,0.9808871]
[1752581745969,1.1121074,680.61,679.94,0.9808871]
[1752581746164,1.1121074,680.6,679.94,0.9808871]
[1752581746367,1.1121074,680.59,679.94,0.9808871]
[1752581746665,1.1121074,680.58,679.95,0.9808871]
[1752581746868,0.98954258,680.64,679.95,0.9808871]
[1752581747468,1.1122354,680.63,679.95,0.9808871]
[1752581749270,1.1122354,680.62,679.96,0.9808871]
[1752581749663,1.1122354,680.62,679.95,0.9808871]
[1752581749968,1.1122354,680.61,679.95,0.9808871]
[1752581750270,1.1122354,680.6,679.95,0.9808871]
[1752581750565,1.1122354,680.59,679.96,0.9808871]
[1752581750869,1.1122354,680.58,679.96,0.9808871]
[1752581751069,1.1122354,680.57,679.96,0.9808871]
[1752581751369,1.1122354,680.56,679.96,0.9808871]
[1752581751566,1.1122354,680.55,679.96,0.9808871]
[1752581751770,1.1122354,680.54,679.96,0.9808871]
[1752581751970,1.1122354,680.53,679.96,0.9808871]
[1752581752166,1.1122354,680.52,679.96,0.9808871]
[1752581752371,1.1122354,680.51,679.97,0.9808871]
[1752581752572,1.1122354,680.5,679.97,0.9808871]
[1752581752770,1.1122354,680.49,679.97,0.9808871]
[1752581752972,0.98954258,680.63,679.97,0.9808871]
[1752581753167,1.1126883,680.62,679.97,0.9808871]
[1752581753372,1.1126883,680.61,679.97,0.9808871]
[1752581753669,1.1126883,680.6,679.97,0.9808871]
[1752581753869,1.1126883,680.59,680.0,0.9808871]
[1752581754174,2.10223088,680.58,680.0,0.9808871]
[1752581754370,1.1126883,680.57,680.0,0.9808871]
[1752581754568,1.1126883,680.56,680.0,0.9808871]
[1752581754769,0.25578455,680.68,680.0,0.9808871]
[1752581754770,1.1126883,680.55,680.0,0.9808871]
[1752581754975,1.1126883,680.54,680.0,0.9808871]
[1752581755171,0.98954258,680.57,680.0,0.9808871]
[1752581755172,1.1126883,680.53,680.0,0.9808871]
[1752581755376,1.1126883,680.52,680.0,0.9808871]
[1752581755675,1.1126883,680.51,680.02,0.9808871]
[1752581755872,1.9777882,680.84,679.79,0.25580241]
[1752581755873,1.1126883,680.5,680.01,0.9808871]
[1752581756074,0.98954258,680.57,680.01,0.9808871]
[1752581756075,1.1128098,680.49,680.01,0.9808871]
[1752581756275,0.98954258,680.57,680.01,0.9808871]
[1752581756276,1.1128098,680.48,680.01,0.9808871]
[1752581756570,0.98954258,680.69,679.93,0.9808871]
[1752581756776,1.1128422,680.68,679.97,0.9808871]
[1752581756973,1.1128422,680.67,679.98,0.9808871]